{"text_format":"1","workbook":"xlsx","n_sheets":7,"sheets":["1.sz. melléklet","1.A.melléklet","1.B.melléklet","1.C.melléklet","4.sz. melléklet_TTtagok","5sz.melléklet_PEB","3szmelléklet_körzetenkénti jegy"],"not_rendered":{"charts":0,"images":0,"macros":0,"external_links":0,"defined_names":0,"comments":0,"pivot_tables":0},"unopened":[],"bounds":{"document_bytes":16777216,"sheet_cells":100000,"rows_first":2000,"rows_last":500,"rows_between":2000,"halvings":0,"cell_chars":16384,"cell_head_chars":4096},"cells_cut":0,"cells_raw":0,"read":"whole","date_system":"1900"}

{"sheet":"1.sz. melléklet","index":0,"n_rows":87,"n_cols":5,"rows_kept":87,"cut":false,"hidden":false,"merged":[[1,0,1,4]]}
[null,null,null,null,"1. sz. melléklet"]
["A Társulás valamennyi a korábbi megállapodás keretei között  együttműködő tagjainak felsorolása"]
["Sorsz","Önkormányzat megnevezése","Székhely","Képviselő neve","Lakosságszám (2014.01.01.)"]
["1.","Aldebrő","3353 Aldebrő, Arany János út 1.","Wingendorf János ",716]
["2.","Andornaktálya","3399 Andornaktálya, Rákóczi F. út 160.","Vámosi László",2850]
["3.","Apc","3032 Apc, Erzsébet tér 1.","Juhász István ",2510]
["4.","Ároktő","3467 Ároktő, Széchenyi u. 75.","Vargáné Kerákgyártó Ildikó",1196]
["5.","Bodony","3243 Bodony, Liget út 2.","Kovács István",770]
["6.","Boldog","3016 Boldog, Kossuth út 8.","Laczkó Roland",3027]
["7.","Buják","3047 Buják, Kossuth út 9.","Borbély Gábor",2135]
["8.","Bükkábrány","3422 Bükkábrány, Vöröshadsereg út 32.","Szalai Szabolcs",1674]
["9.","Bükkszék","3335 Bükkszék, Szabadság tér 2.","Zagyva Ferenc Görgyné",715]
["10.","Bükkszenterzsébet","3257 Bükkszenterzsébet, Szabadság út 199.","Ortó Szilárd",1076]
["11.","Csány","3015 Csány, Kossuth út 2.","Medve István",2232]
["12.","Demjén","3395 Demjén, Kossuth Lajos tér 1.","Fodor Géza",629]
["13.","Ecséd","3013 Ecséd, Szabadság út 139.","Maksa Mátyás",3237]
["14.","Eger MJV","3300 Eger, Dobó István tér 2.","Habis László",54315]
["15.","Egerbakta","3321 Egerbakta, Bátori út 12.","Varga Tibor",1473]
["16.","Egercsehi","3341 Egercsehi, Egri út 8.","Kovács András ",1392]
["17.","Egerszalók","3394 Egerszalók, Sáfrány út 7.",null,1912]
["18.","Egerszólát","3328 Egerszólát, Egri út 2.","Verebélyi György",1099]
["19.","Egyházasdengeleg","3043 Egyházasdengeleg, Rákóczi út 79.","Berkes Balázs",493]
["20.","Erdőkövesd","3252, Erdőkövesd, Rákóczi út 39.","Gombás Dezsőné",632]
["21.","Erdőkürt","2176 Erdőkürt, Kossuth u. 51.","Szebenszkiné Palik Katalin",537]
["22.","Erdőtarcsa","2177 Erdőtarcsa, Iskola út 1.","Markó Anita",565]
["23.","Fedémes","3255 Fedémes, Petőfi út 117.","Válóci István",324]
["24.","Feldebrő","3352 Feldebrő, Kossuth út 31.","Gecse Mihály Gábor",1031]
["25.","Felsőtárkány","3324 Felsőtárkány, Fő út 101","Dr.Juhász Attila Simon",3519]
["26.","Hatvan","3000 Hatvan, Kossuth tér 2.","Horváth Richárd",21236]
["27.","Héhalom","3041 Héhalom, Petőfi u. 1.","Bakos József",1006]
["28.","Hejőkürt","3588 Hejőkürt, Szent István u 62.","Strezenecki Stella",308]
["29.","Heréd","3011 Heréd, Rákóczi F. út 39.","Kómár József",1963]
["30.","Hevesaranyos","3322 Hevesaranyos, Petőfi út 1.","Dorkó Csaba",647]
["31.","Hort","3014 Hort, Szabadság tér 40.","Kerek Oszkár",3677]
["32.","Istenmezeje","3253 Istenmezeje, Nefelejcs út 18.","Nagy Péter ",1587]
["33.","Ivád","3248 Ivád, Ivády Sándor tér 5.","Valyon László",408]
["34.","Jászfényszaru","5126 Jászfényszaru, Szabadság tér 1.","Győriné Dr.Czeglédi Márta",5731]
["35.","Kál","3350 Kál, Szent István tér 2.","Morvai János",3673]
["36.","Kálló","2175 Kálló, Kossuth u. 16.","Baboss Buda",1546]
["37.","Kápolna","3355 Kápolna, Kossuth út 12.","Dr.Berecz Kálmán",1579]
["38.","Kerecsend","3396 Kerecsend, Fő út 55.","Sári László",2396]
["39.","Kerekharaszt","3009 Kerekharaszt, Bimbó u. 2.","Szabó Ádám",1031]
["40.","Kisbágyon","3046 Kisbágyon, Szabadság u. 21","Nagy Attiláné",442]
["41.","Kisfüzes","3256 Kisfüzes, Szabadság tér 2.","Menyhárt Balázs ",145]
["42.","Kisköre","3384 Kisköre, Széchenyi u. 24.","Magyar Csilla",2891]
["43.","Kompolt","3350 Komolt, Kápolnai út 28.","Balázs Zoltán",2098]
["44.","Lőrinci","3021 Lőrinci, Szabadság tér 26.","Víg Zoltán",5756]
["45.","Maklár","3397 Maklár, Templom tér 7.","Havasi László",2466]
["46.","Mátraballa","3247 Mátraballa, Iskola u. 5.","Dudás Róbert",745]
["47.","Mátraderecske","3246 Mátraderecske, Hősök tere 12.","Forgó Gábor",1917]
["48.","Mezőkeresztes","3441 Mezőkeresztes, Dózsa György út 30.","Majoros János ",4035]
["49.","Nagykökényes","3012 Nagykökényes, Szabadság út 37.","Besszer Andrásné",589]
["50.","Nagytálya","3398 Nagytálya, Kossuth u. 34.","Orosz József",860]
["51.","Nagyút","3357 Nagyút, Szabadság tér 1.","Tóth Géza",725]
["52.","Nagyvisnyó","3349 Nagyvisnyó, Felszabadulás út 12.","Csőgér Bálint",949]
["53.","Noszvaj","3325 Noszvaj, Kossuth út 1.","Bóta Géza",1813]
["54.","Novaj ","3327 Novaj, Rákóczi F. út 3.","Dr. Darvainé Dr. Kádár Katalin ",1398]
[]
[]
["Sorsz","Önkormányzat megnevezése","Székhely","Képviselő neve","Lakosságszám (2013.12.31)"]
["55.","Ostoros","3326 Ostoros, Hősök tere 4.","Kisari Zoltán",2698]
["56.","Palotás","3042 Palotás, Kossuth u. 1","Szabó Mihály",1629]
["57.","Parád","3240 Parád, Kossuth u. 91.","Mudriczki József",2085]
["58.","Pétervására","3250 Pétervására, Szabadság tér 1.","Eged István",2319]
["59.","Recsk","3245 Recsk, Kossuth u. 165.","Nagy Sándor",2832]
["60.","Rózsaszentmárton","3033 Rózsaszentmárton, Kossuth út 1.","Sípos Jánosné",1985]
["61.","Sajóhídvég","3576 Sajóhídvég, Rákóczi u. 37.","Török Gergely",1129]
["62.","Sirok","3332 Sirok, Borics Pál út 6.","Tuza Gábor",1900]
["63.","Szirák","3044 Szirák, Petőfi út 31.","Kómár Jánosné",1173]
["64.","Szajla","3334 Szajla, Kertész u. 2.","Vincze Imre Istvánné",606]
["65.","Szarvaskő","3323 Szarvaskő, Rákóczi út 1.","Szabóné Balla Marianna",387]
["66.","Szentdomonkos","3259 Szentdomonkos, Szabadság u. 48.","Kovács Zoltán",506]
["67.","Szilvásvárad","3348 Szilvásvárad, Miskolci út 7.","Szaniszló László",1640]
["68.","Szúcs","3338 Szúcs, Kossuth út 50.","Egyed Zsigmond",464]
["69.","Taktaharkány","3922 Taktaharkány, Gépállomás u. 4.","Dr. Szemán Ákos Gyula",3716]
["70.","Tarnalelesz","3258 Tarnalelesz, Fedémesi út 8.","Kovács Béla",1803]
["71.","Tarnaméra","3284 Tarnaméra, Árpád u. 10.","Tímár László",1670]
["72.","Tarnaszentmária","3331 Tarnaszentmária, Egri út 2.","Czipó László",239]
["73.","Terpes","3333 Terpes, Rákóczi F. út 23.","Zvaráné Béres Mária",207]
["74.","Tibolddaróc","3423 Tibolddaróc, Széchenyi út 1.","Dósa József",1434]
["75.","Tiszaújváros","3580 Tiszaújváros, Bethlen G. u.7.","Bráz György",17821]
["76.","Tófalu","3354 Tófalu, Kossuth u. 16.","Ignácz Szabolcs András",593]
["77.","Vanyarc","2688 Vanyarc, Veres Pálné u .54","Hrncsjár Mihályné",1300]
["78.","Váraszó","3254 Váraszó, Rákóczi út 1.","Pál István László",495]
["79. ","Vámosgyörk","3291 Vámosgyörk, Petőfi út 25.","Gedei Zoltán",1997]
["80.","Verpelét","3351 Verpelét, Kossuth Lajos út 73.","Farkas Sándor",3912]
["81.","Zagyvaszántó","3031 Zagyvaszántó, Ifjúság tér 1.","Fekete László",1960]

{"sheet":"1.A.melléklet","index":1,"n_rows":19,"n_cols":5,"rows_kept":19,"cut":false,"hidden":false,"merged":[[1,0,1,4],[0,3,0,4]]}
[null,null,null,"1/A. sz. melléklet"]
["Kizárólag a Társulás I. Fejezet 4. pont b) alpontja szerinti önkormányzati feladatokban együttműködő tagjainak felsorolása"]
["Sorsz","Önkormányzat megnevezése","Székhely","Képviselő neve","Lakosságszám (2014.01.01.)"]
["1.","Apc","3032 Apc, Erzsébet tér 1.","Juhász István",2510]
["2.","Boldog","3016 Boldog, Kossuth út 8.","Laczkó Roland",3027]
["3.","Csány","3015 Csány, Kossuth út 2.","Medve István",2232]
["4.","Hatvan","3000 Hatvan, Kossuth tér 2.","Horváth Richárd",21236]
["5.","Heréd","3011 Heréd, Rákóczi F. út 39.","Kómár József",1963]
["6.","Hort","3014 Hort, Szabadság tér 40.","Kerek Oszkár",3677]
["7.","Jászfényszaru","5126 Jászfényszaru, Szabadság tér 1.","Győriné Dr. Czeglédi Márta",5731]
["8.","Kál","3350 Kál, Szent István tér 2.","Morvai János",3673]
["9.","Kerekharaszt","3009 Kerekharaszt, Bimbó u. 2.","Szabó Ádám",1031]
["10.","Nagykökényes","3012 Nagykökényes, Szabadság út 37.","Besszer Andrásné",589]
["11.","Nagyút","3357 Nagyút, Szabadság tér 1.","Tóth Géza",725]
["12.","Palotás","3042 Palotás, Kossuth u. 1","Szabó Mihály",1629]
["13.","Rózsaszentmárton","3033 Rózsaszentmárton, Kossuth út 1.","Sípos Jánosné",1985]
["14.","Vanyarc","2688 Vanyarc, Veres Pálné u .54","Hrncsjár Mihályné",1300]
["15.","Vámosgyörk","3291 Vámosgyörk, Petőfi út 25.","Gedei Zoltán",1997]
["16.","Zagyvaszántó","3031 Zagyvaszántó, Ifjúság tér 1.","Fekete László",1960]

{"sheet":"1.B.melléklet","index":2,"n_rows":60,"n_cols":5,"rows_kept":60,"cut":false,"hidden":false,"merged":[[1,0,1,4]]}
[null,null,null,null,"1/B. sz. melléklet"]
["Kizárólag a Társulás I. Fejezet 4. pont a) alpontja szerinti önkormányzati feladatokban együttműködő tagjainak felsorolása"]
["Sorsz","Önkormányzat megnevezése","Székhely","Képviselő neve","Lakosságszám (2014.01.01.)"]
["1.","Aldebrő","3353 Aldebrő, Arany János út 1.","Wingendorf János",716]
["2.","Andornaktálya","3399 Andornaktálya, Rákóczi F. út 160.","Vámosi László",2850]
["3.","Ároktő","3467 Ároktő, Széchenyi u. 75.","Vargáné Kerékgyártó Ildikó",1196]
["4.","Bodony","3243 Bodony, Liget út 2.","Kovács István",770]
["5.","Buják","3047 Buják, Kossuth út 9.","Borbély Gábor",2135]
["6.","Bükkábrány","3422 Bükkábrány, Vöröshadsereg út 32.","Szalai Szabolcs",1674]
["7.","Bükkszék","3335 Bükkszék, Szabadság tér 2.","Zagyva Ferenc Györgyné",715]
["8.","Bükkszenterzsébet","3257 Bükkszenterzsébet, Szabadság út 199.","Ortó Szilárd",1076]
["9.","Demjén","3395 Demjén, Kossuth Lajos tér 1.","Fodor Géza",629]
["10.","Eger MJV","3300 Eger, Dobó István tér 2.","Habis László",54315]
["11.","Egerbakta","3321 Egerbakta, Bátori út 12.","Varga Tibor József",1473]
["12.","Egercsehi","3341 Egercsehi, Egri út 8.","Kovács András",1392]
["13.","Egerszalók","3394 Egerszalók, Sáfrány út 7.",null,1912]
["14.","Egerszólát","3328 Egerszólát, Egri út 2.","Verebélyi György",1099]
["15.","Erdőkövesd","3252, Erdőkövesd, Rákóczi út 39.","Gombás Dezsőné",632]
["16.","Fedémes","3255 Fedémes, Petőfi út 117.","Válóci István",324]
["17.","Feldebrő","3352 Feldebrő, Kossuth út 31.","Gecse Mihály Gábor",1031]
["18.","Felsőtárkány","3324 Felsőtárkány, Fő út 101","Dr. Juhász Attila Simon",3519]
["19.","Hejőkürt","3588 Hejőkürt, Szent István u 62.","Strezenecki Stella",308]
["20.","Hevesaranyos","3322 Hevesaranyos, Petőfi út 1.","Dorkó Csaba",647]
["21.","Istenmezeje","3253 Istenmezeje, Nefelejcs út 18.","Kotroczó István",1587]
["22.","Ivád","3248 Ivád, Ivády Sándor tér 5.","Valyon László",408]
["23.","Kápolna","3355 Kápolna, Kossuth út 12.","Dr.Berecz Kálmán",1579]
["24.","Kerecsend","3396 Kerecsend, Fő út 55.","Sári László",2396]
["25.","Kisfüzes","3256 Kisfüzes, Szabadság tér 2.","Menyhárt Balázs",145]
["26.","Kompolt","3350 Komolt, Kápolnai út 28.","Balázs Zoltán",2098]
["27.","Lőrinci","3021 Lőrinci, Szabadság tér 26.","Víg Zoltán",5756]
["28.","Maklár","3397 Maklár, Templom tér 7.","Havasi László",2466]
["29.","Mátraballa","3247 Mátraballa, Iskola u. 5.","Dudás Róbert",745]
["30.","Mátraderecske","3246 Mátraderecske, Hősök tere 12.","Forgó Gábor",1917]
["31.","Mezőkeresztes","3441 Mezőkeresztes, Dózsa György út 30.","Majoros János",4035]
["32.","Nagytálya","3398 Nagytálya, Kossuth u. 34.","Orosz József",860]
["33.","Nagyvisnyó","3349 Nagyvisnyó, Felszabadulás út 12.","Csőgér Bálint",949]
["34.","Noszvaj","3325 Noszvaj, Kossuth út 1.","Bóta Géza",1813]
["35.","Novaj ","3327 Novaj, Rákóczi F. út 3.","Dr. Darvainé Dr. Kádár Katalin",1398]
["36.","Ostoros","3326 Ostoros, Hősök tere 4.","Kisari Zoltán",2698]
["37.","Parád","3240 Parád, Kossuth u. 91.","Mudriczki József",2085]
["38.","Pétervására","3250 Pétervására, Szabadság tér 1.","Eged István",2319]
["39.","Recsk","3245 Recsk, Kossuth u. 165.","Nagy Sándor",2832]
["40.","Sajóhídvég","3576 Sajóhídvég, Rákóczi u. 37.","Török Gergely",1129]
["41.","Sirok","3332 Sirok, Borics Pál út 6.","Tuza Gábor",1900]
["42.","Szirák","3044 Szirák, Petőfi út 31.","Kómár Jánosné",1173]
["43.","Szajla","3334 Szajla, Kertész u. 2.","Vincze Imre Istvánné",606]
["44.","Szarvaskő","3323 Szarvaskő, Rákóczi út 1.","Szabóné Balla Marianna",387]
["45.","Szentdomonkos","3259 Szentdomonkos, Szabadság u. 48.","Kovács Zoltán",506]
["46.","Szilvásvárad","3348 Szilvásvárad, Miskolci út 7.","Szaniszló László",1640]
["47.","Szúcs","3338 Szúcs, Kossuth út 50.","Egyed Zsigmond",464]
["48.","Taktaharkány","3922 Taktaharkány, Gépállomás u. 4.","Dr. Szemán Ákos Gyula",3716]
["49.","Tarnalelesz","3258 Tarnalelesz, Fedémesi út 8.","Kovács Béla",1803]
["50.","Tarnaméra","3284 Tarnaméra, Árpád u. 10.","Tímár László",1670]
["51.","Tarnaszentmária","3331 Tarnaszentmária, Egri út 2.","Czipó László",239]
["52.","Terpes","3333 Terpes, Rákóczi F. út 23.","Zvaráné Béres Mária",207]
["53.","Tibolddaróc","3423 Tibolddaróc, Széchenyi út 1.","Dósa József",1434]
["54.","Tiszaújváros","3580 Tiszaújváros, Bethlen G. u.7.","Bráz György",17821]
["55.","Tófalu","3354 Tófalu, Kossuth u. 16.","Ignácz Szabolcs András",593]
["56.","Váraszó","3254 Váraszó, Rákóczi út 1.","Pál István László",495]
["57.","Verpelét","3351 Verpelét, Kossuth Lajos út 73.","Farkas Sándor",3912]

{"sheet":"1.C.melléklet","index":3,"n_rows":11,"n_cols":5,"rows_kept":11,"cut":false,"hidden":false,"merged":[[1,0,1,4],[0,0,0,4]]}
["1/C. sz. melléklet "]
["Kizárólag a Társulás I. Fejezet 4. pont c)  alpontja szerinti önkormányzati feladatokban együttműködő tagjainak felsorolása"]
["Sorsz","Önkormányzat megnevezése","Székhely","Képviselő neve","Lakosságszám (2014.01.01.)"]
["1.","Ecséd","3013 Ecséd, Szabadság út 139.","Maksa Mátyás",3237]
["2.","Egyházasdengeleg","3043 Egyházasdengeleg, Rákóczi út 79.","Berkes Balázs",493]
["3.","Erdőkürt","2176 Erdőkürt, Kossuth u. 51.","Szebenszkiné Palik Katalin",537]
["4.","Erdőtarcsa","2177 Erdőtarcsa, Iskola út 1.","Markó Anita",565]
["5.","Héhalom","3041 Héhalom, Petőfi u. 1.","Bakos József",1006]
["6.","Kálló","2175 Kálló, Kossuth u. 16.","Baboss Buda",1546]
["7.","Kisbágyon","3046 Kisbágyon, Szabadság u. 21","Nagy Attiláné",442]
["8.","Kisköre","3384 Kisköre, Széchenyi u. 24.","Magyar Csilla",2891]

{"sheet":"4.sz. melléklet_TTtagok","index":4,"n_rows":40,"n_cols":6,"rows_kept":40,"cut":false,"hidden":false,"merged":[[4,0,6,6],[0,0,1,8]]}
["4.sz. melléklet\nKörzeti meghatalmazottak jegyzéke"]
[]
[]
[]
["Heves Megyei Regionális Hukkadékgazdálkodási Társulás\nTársulási Tanácstagok"]
[]
[]
[]
[]
["1. ÉSZAK-HEVESI KÖRZET",null,null,null,null,"2. TARNA MENTI KÖRZET"]
["Nagyvisnyó Önkormányzata",null,null,null,null,"Kápolna Önkormányzata"]
["3349 Nagyvisnyó, Felszabadulás út 12.",null,null,null,null,"3355 Kápolna, Kossuth út 12."]
["Polgármester: Csőgér Bálint",null,null,null,null,"Polgármester: Dr. Berecz Kálmán"]
[]
[]
[]
[]
[]
["3. HATVAN KÖRZETE",null,null,null,null,"4. EGER KÖRZETE"]
["Kál Önkormányzata",null,null,null,null,"Andornaktálya önkormányzata"]
["3350 Kál, Szent István tér 2.",null,null,null,null,"3399 Andornaktálya, II. Rákóczi út 160."]
["Polgármester: Morvai János",null,null,null,null,"Polgármester: Vámosi László"]
[]
[]
[]
[]
[]
["5. PÉTERVÁSÁRA KÖRZETE",null,null,null,null,"6. BORSOD KÖRZETE"]
["Pétervására Önkormányzata",null,null,null,null,"Tiszaújváros Önkormányzata"]
["3250 Pétervására, Szabadság tér 1.",null,null,null,null,"3580 Tiszaújváros, Bethlen G. u.7."]
["Polgármester: Eged István",null,null,null,null,"Polgármester: Bráz György"]
[]
[]
[]
[]
[]
["7. NÓGRÁD KÖRZETE",null,null,null,null,"8. EGER "]
["Héhalom Önkormányzata",null,null,null,null,"Eger Megyei Jogú Város Önkormányzata"]
["3041 Héhalom, Petőfi út 1.",null,null,null,null,"3300 Eger, Dobó tér 2."]
["Polgármester: Bakos József",null,null,null,null,"Polgármester: Habis László"]

{"sheet":"5sz.melléklet_PEB","index":5,"n_rows":13,"n_cols":3,"rows_kept":13,"cut":false,"hidden":false,"merged":[[10,2,10,3],[11,2,11,3],[12,2,12,3],[0,2,0,3],[7,0,7,8],[4,0,4,5],[8,2,8,3],[9,2,9,3]]}
[null,null,"5.sz. melléklet\n"]
[]
[]
[]
["Heves Megyei Regionális Hulladékgazdálkodási Társulás\nPénzügyi Ellenőrző Bizottság tagjainak névjegyzéke"]
[]
[]
[]
["Bizottsági tag:                    ","Tarna Mente Körzet","Kompolt Önkormányzat Polgármestere\nBalázs Zoltán"]
["Bizottsági tag:     ","Borsod Körzete","Mezőkeresztes Önkormányzat Polgármestere\nMajoros János"]
["Bizottsági tag:     ","Pétervására Körzete","Mátraderecske Önkormányzat Polgármestere\nForgó Gábor"]
["Bizottsági tag:     ","Hatvan Körzete","Kál Önkormányzat Polgármestere\nMorvai János"]
["Bizottsági tag:     ","Eger Körzete","……………. Önkormányzat Polgármestere\n……………….."]

{"sheet":"3szmelléklet_körzetenkénti jegy","index":6,"n_rows":102,"n_cols":5,"rows_kept":102,"cut":false,"hidden":false,"merged":[[79,0,79,3],[90,0,90,3],[1,0,1,4],[27,0,27,3],[45,0,45,3]]}
[null,null,null,null,"3.sz. melléklet"]
["Az önkormányzatok körzetenkénti jegyzéke"]
[]
["Ssz.","Önkörmányzat","Körzet","Lakosság száma (2013.12.31.)","Szavazati arány\n(%)"]
["1.","Eger","Eger ",54315,{"$f":"D5/221173*100","v":24.557699176662613}]
[]
["2.","Andornaktálya","Eger Körzete",2850,{"$f":"D7/221173*100","v":1.2885840495901399}]
["3.","Demjén","Eger Körzete",629,0.28439276041831507]
["4.","Egerbakta","Eger Körzete",1473,0.66599449299869329]
["5.","Egerszalók","Eger Körzete",1912,0.8644816501109992]
["6.","Egerszólát","Eger Körzete",1099,0.49689609491212761]
["7.","Felsőtárkány","Eger Körzete",3519,1.5910622001781412]
["8.","Kerecsend","Eger Körzete",2396,1.0833148711642018]
["9.","Maklár","Eger Körzete",2466,1.1149643039611528]
["10.","Nagytálya","Eger Körzete",860,0.38883588864825275]
["11.","Noszvaj","Eger Körzete",1813,0.8197203094410257]
["12.","Novaj","Eger Körzete",1398,0.63208438643053177]
["13.","Ostoros","Eger Körzete",2698,1.2198595669453325]
["14.","Szarvaskő","Eger Körzete",387,0.17497614989171373]
[null,null,null,{"$f":"SUM(D7:D19)","v":23500},10.625166724690626]
[]
["15.","Egercsehi","Észak-Hevesi Körzet",1392,{"$f":"D22/221173*100","v":0.62937157790507881}]
["16.","Hevesaranyos","Észak-Hevesi Körzet",647,{"$f":"D23/221173*100","v":0.29253118599467387}]
["17.","Nagyvisnyó","Észak-Hevesi Körzet",949,{"$f":"D24/221173*100","v":0.42907588177580447}]
["18.","Szilvásvárad","Észak-Hevesi Körzet",1640,{"$f":"D25/221173*100","v":0.74150099695713312}]
["19.","Szúcs","Észak-Hevesi Körzet",464,{"$f":"D26/221173*100","v":0.20979052596835959}]
[null,null,null,{"$f":"SUM(D22:D26)","v":5092},2.3022701686010496]
[]
["20.","Apc","Hatvan Körzete",2510,1.1348582331478074]
["21.","Boldog","Hatvan Körzete",3027,1.3686119010910012]
["22.","Csány","Hatvan Körzete",2232,1.0091647714684884]
["23.","Hatvan","Hatvan Körzete",21236,9.6015336410863892]
["24.","Heréd","Hatvan Körzete",1963,0.88754052257734894]
["25.","Hort","Hatvan Körzete",3677,1.6624994913484015]
["26.","Jászfényszaru","Hatvan Körzete",5731,2.5911842765617865]
["27.","Kál","Hatvan Körzete",3673,{"$f":"D36/221173*100","v":1.6606909523314328}]
["28.","Kerekharaszt","Hatvan Körzete",1031,0.46615093162366111]
["29.","Nagykökényes","Hatvan Körzete",589,0.26630737024862888]
["30.","Nagyút","Hatvan Körzete",725,{"$f":"D39/221173*100","v":0.32779769682556192}]
["31.","Palotás","Hatvan Körzete",1629,{"$f":"D40/221173*100","v":0.7365275146604694}]
["32.","Rószaszentmárton","Hatvan Körzete",1985,0.89748748717067628]
["33.","Vanyarc","Hatvan Körzete",1300,{"$f":"D42/221173*100","v":0.5877751805148006}]
["34.","Vámosgyörk","Hatvan Körzete",1997,0.90291310422158222]
["35.","Zagyvaszántó","Hatvan Körzete",1960,0.8861841183146224]
[null,null,null,{"$f":"SUM(D29:D44)","v":55265},24.987227193192659]
[]
["36.","Buják","Nógrád Körzete",2135,0.96530770030699953]
["37.","Ecséd","Nógrád Körzete",3237,{"$f":"D48/221173*100","v":1.4635601994818537}]
["38.","Egyházasdengeleg","Nógrád Körzete",493,0.22290243384138209]
["39.","Erdőkürt","Nógrád Körzete",537,0.24279636302803687]
["40.","Erdőtarcsa","Nógrád Körzete",565,0.25545613614681723]
["41.","Héhalom","Nógrád Körzete",1006,0.45484756276760724]
["42.","Lőrinci","Nógrád Körzete",5756,{"$f":"D53/221173*100","v":2.6024876454178401}]
["43.","Kálló","Nógrád Körzete",1546,0.69900033005837059]
["44.","Kisbágyon","Nógrád Körzete",442,0.1998435613750322]
["45.","Szirák","Nógrád Körzete",1173,{"$f":"D56/221173*100","v":0.53035406672604701}]
[null,null,null,{"$f":"SUM(D47:D56)","v":16890},7.6365559991499872]
[]
["Ssz.","Önkörmányzat","Körzet","Lakosság száma (2013.01.01)","Szavazati arány\n(%)"]
["46.","Bodony","Pétervására körzete",770,0.34814376076645881]
["47.","Bükkszék","Pétervására körzete",715,0.32327634928314031]
["48.","Bükkszenterzsébet","Pétervására körzete",1076,0.48649699556455805]
["49.","Erdőkövesd","Pétervására körzete",632,0.28574916468104156]
["50.","Fedémes","Pétervására körzete",324,0.14649166037445802]
["51.","Istenmezeje","Pétervására körzete",1587,0.71753785498229883]
["52.","Ivád","Pétervására körzete",408,0.18447097973079898]
["53.","Kisfüzes","Pétervására körzete",145,6.5559539365112371E-2]
["54.","Mátraballa","Pétervására körzete",745,0.33684039191040499]
["55.","Mátraderecske","Pétervására körzete",1917,0.86674232388220984]
["56.","Parád","Pétervására körzete",2085,0.94270096259489178]
["57.","Pétervására","Pétervására körzete",2319,{"$f":"D71/221173*100","v":1.0485004950875561}]
["58.","Recsk","Pétervására körzete",2832,1.2804456240137811]
["59.","Sirok","Pétervására körzete",1900,0.85905603306009326]
["60.","Szajla","Pétervására körzete",606,0.27399366107074552]
["61.","Szentdomonkos","Pétervására körzete",506,0.2287801856465301]
["62.","Tarnalelesz","Pétervására körzete",1803,0.8151989618986043]
["63.","Terpes","Pétervására körzete",207,9.3591894128125935E-2]
["64.","Váraszó","Pétervására körzete",495,0.22380670334986638]
[null,null,null,{"$f":"SUM(D60:D78)","v":21072},9.5273835413906749]
[]
["65.","Aldebrő","Tarna Menti Körzet",716,0.32372848403738252]
["66.","Feldebrő","Tarna Menti Körzet",1031,0.46615093162366111]
["67.","Kápolna","Tarna Menti Körzet",1579,0.71392077694836176]
["68.","Kisköre","Tarna Menti Körzet",2891,1.3071215745140683]
["69.","Kompolt","Tarna Menti Körzet",2098,0.94857871440003971]
["70.","Tarnaméra","Tarna Menti Körzet",1670,0.75506503958439775]
["71.","Tarnaszentmária","Tarna Menti Körzet",239,0.1080602062638749]
["72.","Tófalu","Tarna Menti Körzet",593,0.26811590926559753]
["73.","Verpelét","Tarna Menti Körzet",3912,1.7687511585953077]
[null,null,null,{"$f":"SUM(D81:D89)","v":14729},6.6594927952326906]
[]
["74.","Ároktő","Borsod Körzete",1196,0.54075316607361656]
["75.","Bükkábrány","Borsod Körzete",1674,0.75687357860136639]
["76.","Hejőkürt","Borsod Körzete",308,0.13925750430658351]
["77.","Mezőkeresztes","Borsod Körzete",4035,1.8243637333670928]
["78.","Sajóhídvég","Borsod Körzete",1129,0.51046013753939223]
["79.","Taktaharkány","Borsod Körzete",3716,1.6801327467638454]
["80.","Tibolddaróc","Borsod Körzete",1434,0.64836123758324937]
["81.","Tiszaújváros","Borsod Körzete",17821,8.057493455349432]
[null,null,null,{"$f":"SUM(D92:D99)","v":31313},14.15769555958458]
[]
["Mindösszesen",null,"Társulás",{"$f":"SUM(D100,D90,D79,D57,D45,D27,D20,D5)","v":222176},{"$f":"SUM(E100,E90,E79,E57,E45,E27,E20,E5)","v":100.45349115850487}]